bitfinex/quotes_BTCUSD_20230831
["timestamp","ask_amount","ask_price","bid_price","bid_amount"]
[1693488395259,0.53950262,27198.0,27197.0,0.045]
[1693488395466,0.53938262,27198.0,27197.0,0.045]
[1693488395664,0.53926262,27198.0,27197.0,0.045]
[1693488395867,0.53914262,27198.0,27197.0,0.045]
[1693488396042,0.53974262,27198.0,27197.0,0.045]
[1693488396381,0.53962262,27198.0,27197.0,0.045]
[1693488396757,0.53878262,27198.0,27197.0,0.045]
[1693488396962,0.53866262,27198.0,27197.0,0.045]
[1693488397175,0.53854262,27198.0,27197.0,0.045]
[1693488397528,0.53842262,27198.0,27197.0,0.045]
[1693488397722,0.53770262,27198.0,27197.0,0.045]
[1693488397923,0.53818262,27198.0,27197.0,0.045]
[1693488398121,0.53662262,27198.0,27197.0,0.045]
[1693488398341,0.53254262,27198.0,27197.0,0.045]
[1693488398537,0.40624262,27198.0,27197.0,0.045]
[1693488398690,0.40618262,27198.0,27197.0,0.045]
[1693488398893,0.40624262,27198.0,27197.0,0.045]
[1693488399293,0.4934237,27198.0,27197.0,0.045]
[1693488399495,0.4933037,27198.0,27197.0,0.045]
[1693488399750,0.4933637,27198.0,27197.0,0.045]
[1693488399954,0.6208037,27198.0,27197.0,0.045]
[1693488400113,0.62632129,27198.0,27197.0,0.045]
[1693488400327,0.62619948,27198.0,27197.0,0.045]
[1693488400528,0.62571948,27198.0,27197.0,0.045]
[1693488400888,0.62559948,27198.0,27197.0,0.045]
[1693488401084,0.62547948,27198.0,27197.0,0.045]
[1693488401299,0.62583948,27198.0,27197.0,0.045]
[1693488401583,0.62451948,27198.0,27197.0,0.045]
[1693488401797,0.62907948,27198.0,27197.0,0.045]
[1693488402024,0.62859948,27198.0,27197.0,0.045]
[1693488402245,0.64695948,27198.0,27197.0,0.045]
[1693488402469,0.64995948,27198.0,27197.0,0.045]
[1693488402824,0.65043948,27198.0,27197.0,0.045]
[1693488403015,0.64527948,27198.0,27197.0,0.045]
[1693488403221,0.64443948,27198.0,27197.0,0.045]
[1693488403438,0.64479948,27198.0,27197.0,0.045]
[1693488403645,0.64455948,27198.0,27197.0,0.045]
[1693488403861,0.57838262,27198.0,27197.0,0.045]
[1693488404068,0.59734262,27198.0,27197.0,0.045]
[1693488404283,0.56254262,27198.0,27197.0,0.045]
[1693488404408,0.56014262,27198.0,27197.0,0.045]
[1693488404621,0.56050262,27198.0,27197.0,0.045]
[1693488404827,0.56014262,27198.0,27197.0,0.045]
[1693488405013,0.55858262,27198.0,27197.0,0.045]
[1693488405240,0.56350262,27198.0,27197.0,0.045]
[1693488405439,0.55762262,27198.0,27197.0,0.045]
[1693488405642,0.56374262,27198.0,27197.0,0.045]
[1693488405875,0.56398262,27198.0,27197.0,0.045]
[1693488406124,0.56422262,27198.0,27197.0,0.045]
[1693488406574,0.56374262,27198.0,27197.0,0.045]
[1693488406774,0.56338262,27198.0,27197.0,0.045]
[1693488407120,0.56374262,27198.0,27197.0,0.045]
[1693488407349,0.56806262,27198.0,27197.0,0.045]
[1693488407553,0.56758262,27198.0,27197.0,0.045]
[1693488407758,0.56266262,27198.0,27197.0,0.045]
[1693488407977,0.56710262,27198.0,27197.0,0.045]
[1693488408175,0.56686262,27198.0,27197.0,0.045]
[1693488408375,0.56650262,27198.0,27197.0,0.045]
[1693488408574,0.56146262,27198.0,27197.0,0.045]
[1693488408781,0.56110262,27198.0,27197.0,0.045]
[1693488409071,0.56182262,27198.0,27197.0,0.045]
[1693488409318,0.56170262,27198.0,27197.0,0.045]
[1693488409523,0.56134262,27198.0,27197.0,0.045]
[1693488409731,0.56110262,27198.0,27197.0,0.045]
[1693488410116,0.56050262,27198.0,27197.0,0.045]
[1693488410325,0.56074262,27198.0,27197.0,0.045]
[1693488410710,0.55918262,27198.0,27197.0,0.045]
[1693488411262,0.55774262,27198.0,27197.0,0.045]
[1693488411467,0.55942262,27198.0,27197.0,0.045]
[1693488411682,0.55990262,27198.0,27197.0,0.045]
[1693488411896,0.56722262,27198.0,27197.0,0.045]
[1693488412105,0.56710262,27198.0,27197.0,0.045]
[1693488412315,0.56050262,27198.0,27197.0,0.045]
[1693488412514,0.55906262,27198.0,27197.0,0.045]
[1693488412719,0.55210262,27198.0,27197.0,0.045]
[1693488412928,0.55102262,27198.0,27197.0,0.045]
[1693488413136,0.55090262,27198.0,27197.0,0.045]
[1693488413523,0.55198262,27198.0,27197.0,0.045]
[1693488413733,0.55138262,27198.0,27197.0,0.045]
[1693488413941,0.55126262,27198.0,27197.0,0.045]
[1693488414287,0.55222262,27198.0,27197.0,0.045]
[1693488414488,0.55174262,27198.0,27197.0,0.045]
[1693488414716,0.54718262,27198.0,27197.0,0.045]
[1693488414922,0.54778262,27198.0,27197.0,0.045]
[1693488415122,0.54754262,27198.0,27197.0,0.045]
[1693488415339,0.56362262,27198.0,27197.0,0.045]
[1693488415537,0.56374262,27198.0,27197.0,0.045]
[1693488415740,0.65138156,27198.0,27197.0,0.045]
[1693488415941,0.33545019,27198.0,27197.0,0.045]
[1693488416167,0.33377019,27198.0,27197.0,0.045]
[1693488416366,0.33401019,27198.0,27197.0,0.045]
[1693488416577,0.33371019,27198.0,27197.0,0.045]
[1693488416774,0.33497019,27198.0,27197.0,0.045]
[1693488417044,0.33629019,27198.0,27197.0,0.045]
[1693488417266,0.33665019,27198.0,27197.0,0.045]
[1693488417480,0.33743019,27198.0,27197.0,0.045]
[1693488417591,0.33803019,27198.0,27197.0,0.045]
[1693488417793,0.33701019,27198.0,27197.0,0.045]
[1693488418244,0.33791019,27198.0,27197.0,0.045]
[1693488418389,0.33773019,27198.0,27197.0,0.045]
[1693488418827,0.33833019,27198.0,27197.0,0.045]
[1693488419028,0.33773019,27198.0,27197.0,0.045]
[1693488419440,0.33557019,27198.0,27197.0,0.045]
[1693488419642,0.33449019,27198.0,27197.0,0.045]
[1693488420028,0.33545019,27198.0,27197.0,0.045]
[1693488420173,0.34433019,27198.0,27197.0,0.045]
[1693488420380,0.34907019,27198.0,27197.0,0.045]
[1693488420586,0.34799019,27198.0,27197.0,0.045]
[1693488420790,0.34751019,27198.0,27197.0,0.045]
[1693488421016,0.34787019,27198.0,27197.0,0.045]
[1693488421170,0.62798156,27198.0,27197.0,0.045]
[1693488421370,0.80436233,27198.0,27197.0,0.045]
[1693488421718,1.09892424,27198.0,27197.0,0.045]
[1693488421921,1.09208424,27198.0,27197.0,0.045]
[1693488422090,1.20504424,27198.0,27197.0,0.045]
[1693488422367,1.26218097,27198.0,27197.0,0.045]
[1693488422546,1.26830097,27198.0,27197.0,0.045]
[1693488422745,1.26578097,27198.0,27197.0,0.045]
[1693488423094,1.26542097,27198.0,27197.0,0.045]
[1693488423292,1.26602097,27198.0,27197.0,0.045]
[1693488423499,1.26398097,27198.0,27197.0,0.045]
[1693488423695,1.26350097,27198.0,27197.0,0.045]
[1693488423999,1.26314097,27198.0,27197.0,0.045]
[1693488424226,1.26290097,27198.0,27197.0,0.045]
[1693488424414,1.26278097,27198.0,27197.0,0.045]
[1693488424718,1.26506097,27198.0,27197.0,0.045]
[1693488424915,1.26458097,27198.0,27197.0,0.045]
[1693488425073,1.26434097,27198.0,27197.0,0.045]
[1693488425268,1.26878097,27198.0,27197.0,0.045]
[1693488425641,1.26770097,27198.0,27197.0,0.045]
[1693488426248,1.26626097,27198.0,27197.0,0.045]
[1693488426390,1.4511361,27198.0,27197.0,0.045]
[1693488426594,1.23026097,27198.0,27197.0,0.045]
[1693488426815,1.24742097,27198.0,27197.0,0.045]
[1693488427019,1.26050097,27198.0,27197.0,0.045]
[1693488427220,1.25954097,27198.0,27197.0,0.045]
[1693488427436,1.4776561,27198.0,27197.0,0.045]
[1693488427641,1.4727361,27198.0,27197.0,0.045]
[1693488427836,1.4746561,27198.0,27197.0,0.045]
[1693488428040,1.4740561,27198.0,27197.0,0.045]
[1693488428278,1.4736961,27198.0,27197.0,0.045]
[1693488428582,1.4729761,27198.0,27197.0,0.045]
[1693488428779,1.4728561,27198.0,27197.0,0.045]
[1693488428983,1.4723761,27198.0,27197.0,0.045]
[1693488429191,1.4718961,27198.0,27197.0,0.045]
[1693488429384,1.296588,27198.0,27197.0,0.045]
[1693488429686,1.344088,27198.0,27197.0,0.045]
[1693488429919,1.347088,27198.0,27197.0,0.045]
[1693488430093,1.347328,27198.0,27197.0,0.045]
[1693488430295,1.344088,27198.0,27197.0,0.045]
[1693488430535,1.12105287,27198.0,27197.0,0.021]
[1693488430743,1.13177287,27198.0,27197.0,0.002]
[1693488430946,1.13165287,27198.0,27197.0,0.002]
[1693488431173,1.15393287,27198.0,27197.0,0.004]
[1693488431293,1.14169287,27198.0,27197.0,0.002]
[1693488431514,1.31459287,27198.0,27197.0,0.004]
[1693488431720,1.31411287,27198.0,27197.0,0.004]
[1693488432080,1.35163287,27198.0,27197.0,0.004]
[1693488432281,1.35823287,27198.0,27197.0,0.004]
[1693488432518,1.55827287,27198.0,27197.0,0.004]
[1693488432704,1.56961287,27198.0,27197.0,0.004]
[1693488432906,1.55935287,27198.0,27197.0,0.004]
[1693488433104,1.55899287,27198.0,27197.0,0.004]
[1693488433307,1.55863287,27198.0,27197.0,0.004]
[1693488433633,1.55233287,27198.0,27197.0,0.004]
[1693488433811,1.36627287,27198.0,27197.0,0.004]
[1693488434014,1.55341287,27198.0,27197.0,0.004]
[1693488434214,1.36699287,27198.0,27197.0,0.004]
[1693488434424,1.62983503,27198.0,27197.0,0.004]
[1693488434638,1.62863503,27198.0,27197.0,0.004]
[1693488434788,1.62923503,27198.0,27197.0,0.004]
[1693488434988,1.63355503,27198.0,27197.0,0.004]
[1693488435208,1.63175503,27198.0,27197.0,0.004]
[1693488435416,1.36807287,27198.0,27197.0,0.004]
[1693488435568,1.36711287,27198.0,27197.0,0.004]
[1693488435782,1.62755503,27198.0,27197.0,0.004]
[1693488436078,1.62635503,27198.0,27197.0,0.004]
[1693488436277,1.36231287,27198.0,27197.0,0.004]
[1693488436484,1.35811287,27198.0,27197.0,0.004]
[1693488436732,1.35295287,27198.0,27197.0,0.004]
[1693488437122,1.35619287,27198.0,27197.0,0.004]
[1693488437536,1.35559287,27198.0,27197.0,0.004]
[1693488437711,1.35511287,27198.0,27197.0,0.004]
[1693488437888,1.35655287,27198.0,27197.0,0.004]
[1693488438090,1.35559287,27198.0,27197.0,0.004]
[1693488438293,1.35475287,27198.0,27197.0,0.004]
[1693488438515,1.34971287,27198.0,27197.0,0.004]
[1693488438695,1.35007287,27198.0,27197.0,0.004]
[1693488438903,1.35523287,27198.0,27197.0,0.004]
[1693488439097,1.35403287,27198.0,27197.0,0.004]
[1693488439323,1.35319287,27198.0,27197.0,0.004]
[1693488439494,1.35259287,27198.0,27197.0,0.004]
[1693488439699,1.35211287,27198.0,27197.0,0.004]
[1693488439926,1.35223287,27198.0,27197.0,0.004]
[1693488440125,1.35199287,27198.0,27197.0,0.004]
[1693488440326,1.34959287,27198.0,27197.0,0.004]
[1693488440530,1.34731287,27198.0,27197.0,0.004]
[1693488440733,1.34623287,27198.0,27197.0,0.004]
[1693488440907,1.34443287,27198.0,27197.0,0.004]
[1693488441133,1.34407287,27198.0,27197.0,0.004]
[1693488441457,1.34467287,27198.0,27197.0,0.004]
[1693488441587,1.34419287,27198.0,27197.0,0.004]
[1693488441954,1.34407287,27198.0,27197.0,0.004]
[1693488442253,1.34419287,27198.0,27197.0,0.004]
[1693488442455,1.34323287,27198.0,27197.0,0.004]
[1693488442666,1.34467287,27198.0,27197.0,0.004]
[1693488443091,1.34539287,27198.0,27197.0,0.004]
[1693488443272,1.34527287,27198.0,27197.0,0.004]
[1693488443499,1.34743287,27198.0,27197.0,0.004]
[1693488443695,1.34755287,27198.0,27197.0,0.004]
[1693488444119,1.34743287,27198.0,27197.0,0.004]
[1693488444521,1.34731287,27198.0,27197.0,0.004]
[1693488444818,1.34719287,27198.0,27197.0,0.004]
[1693488445063,1.34767287,27198.0,27197.0,0.004]
[1693488445235,1.34839287,27198.0,27197.0,0.004]
[1693488445434,1.34863287,27198.0,27197.0,0.004]
[1693488445568,1.35175287,27198.0,27197.0,0.004]
[1693488445993,1.35019287,27198.0,27197.0,0.004]
[1693488446421,1.34755287,27198.0,27197.0,0.004]
[1693488446617,1.34359287,27198.0,27197.0,0.004]
[1693488446824,1.34371287,27198.0,27197.0,0.004]
[1693488447058,1.34395287,27198.0,27197.0,0.004]
[1693488447389,1.34935287,27198.0,27197.0,0.004]
[1693488447588,1.34959287,27198.0,27197.0,0.004]
[1693488448524,1.34983287,27198.0,27197.0,0.004]
[1693488449310,1.35235287,27198.0,27197.0,0.004]
[1693488449520,1.35247287,27198.0,27197.0,0.004]
[1693488449695,1.34863287,27198.0,27197.0,0.004]
[1693488449896,1.34935287,27198.0,27197.0,0.004]
[1693488450231,1.34911287,27198.0,27197.0,0.004]
[1693488450666,1.34719287,27198.0,27197.0,0.004]
[1693488450871,1.33771287,27198.0,27197.0,0.004]
[1693488451077,1.33795287,27198.0,27197.0,0.004]
[1693488451277,1.33807287,27198.0,27197.0,0.004]
[1693488451411,1.34479287,27198.0,27197.0,0.004]
[1693488451810,1.34431287,27198.0,27197.0,0.004]
[1693488452015,1.43585287,27198.0,27197.0,0.004]
[1693488452336,1.44539287,27198.0,27197.0,0.004]
[1693488452532,1.45637287,27198.0,27197.0,0.004]
[1693488452804,1.45619287,27198.0,27197.0,0.004]
[1693488452958,1.45475287,27198.0,27197.0,0.004]
[1693488453163,1.45367287,27198.0,27197.0,0.004]
[1693488453417,1.45349287,27198.0,27197.0,0.004]
[1693488453622,1.45331287,27198.0,27197.0,0.004]
[1693488453767,1.45367287,27198.0,27197.0,0.004]
[1693488453968,1.45601287,27198.0,27197.0,0.004]
[1693488454215,1.45655287,27198.0,27197.0,0.004]
[1693488454415,1.45673287,27198.0,27197.0,0.004]
[1693488454635,1.45385287,27198.0,27197.0,0.004]
[1693488454860,1.45403287,27198.0,27197.0,0.004]
[1693488455062,1.45835287,27198.0,27197.0,0.004]
[1693488455264,1.45781287,27198.0,27197.0,0.004]
[1693488455440,1.45457287,27198.0,27197.0,0.004]
[1693488455647,1.43569121,27198.0,27197.0,0.004]
[1693488455860,1.43677121,27198.0,27197.0,0.004]
[1693488456055,1.43605121,27198.0,27197.0,0.004]
[1693488456262,1.43641121,27198.0,27197.0,0.004]
[1693488456458,1.43623121,27198.0,27197.0,0.004]
[1693488456759,1.44451121,27198.0,27197.0,0.004]
[1693488456973,1.44559121,27198.0,27197.0,0.004]
[1693488457099,1.45315121,27198.0,27197.0,0.004]
[1693488457299,1.45153121,27198.0,27197.0,0.004]
[1693488457503,1.45783121,27198.0,27197.0,0.004]
[1693488457702,1.46089121,27198.0,27197.0,0.004]
[1693488457930,1.46053121,27198.0,27197.0,0.004]
[1693488458129,1.46071121,27198.0,27197.0,0.004]
[1693488458337,1.46089121,27198.0,27197.0,0.004]
[1693488458533,1.46143121,27198.0,27197.0,0.004]
[1693488458739,1.46089121,27198.0,27197.0,0.004]
[1693488458959,1.46161121,27198.0,27197.0,0.004]
[1693488459409,1.53715121,27198.0,27197.0,0.004]
[1693488459561,1.53805121,27198.0,27197.0,0.004]
[1693488459760,1.53787121,27198.0,27197.0,0.004]
[1693488460369,1.53751121,27198.0,27197.0,0.004]
[1693488460578,1.53805121,27198.0,27197.0,0.004]
[1693488460979,1.52005121,27198.0,27197.0,0.004]
[1693488461183,1.52257121,27198.0,27197.0,0.004]
[1693488461389,1.52077121,27198.0,27197.0,0.004]
[1693488461582,1.52095121,27198.0,27197.0,0.004]
[1693488461811,1.50781121,27198.0,27197.0,0.004]
[1693488462021,1.50817121,27198.0,27197.0,0.004]
[1693488462184,1.52023121,27198.0,27197.0,0.004]
[1693488462530,1.52041121,27198.0,27197.0,0.004]
[1693488462665,1.78701011,27198.0,27197.0,0.004]
[1693488462865,1.78773011,27198.0,27197.0,0.004]
[1693488463062,1.79007011,27198.0,27197.0,0.004]
[1693488463317,1.79097011,27198.0,27197.0,0.004]
[1693488463511,1.79043011,27198.0,27197.0,0.004]
[1693488463718,1.79061011,27198.0,27197.0,0.004]
[1693488463916,1.79601011,27198.0,27197.0,0.004]
[1693488464270,1.91745121,27198.0,27197.0,0.004]
[1693488464479,1.98171121,27198.0,27197.0,0.004]
[1693488464889,1.97487121,27198.0,27197.0,0.004]
[1693488465089,2.01323121,27198.0,27197.0,0.004]
[1693488465286,1.99043121,27198.0,27197.0,0.002]
[1693488465559,2.02481121,27198.0,27197.0,0.003]
[1693488465764,2.02283121,27198.0,27197.0,0.003]
[1693488465961,2.00283121,27198.0,27197.0,0.001]
[1693488466163,0.02,27194.0,27191.0,0.1838]
[1693488466343,0.16373893,27192.0,27191.0,0.1838]
[1693488466549,0.16373893,27192.0,27189.0,0.021109]
[1693488466789,0.0759,27190.0,27189.0,0.021109]
[1693488467368,0.1794,27190.0,27189.0,0.021109]
[1693488467787,0.18336,27190.0,27189.0,0.021109]
[1693488467952,0.18776,27190.0,27189.0,0.029109]
[1693488468153,0.18668,27190.0,27189.0,0.029109]
[1693488468353,0.18602,27190.0,27189.0,0.029109]
[1693488468578,0.18548,27190.0,27189.0,0.029109]
[1693488468772,0.17972,27190.0,27189.0,0.029109]
[1693488468989,0.17948,27190.0,27189.0,0.029109]
[1693488469190,0.1799,27190.0,27189.0,0.029109]
[1693488469501,0.1799,27190.0,27189.0,0.039109]
[1693488469502,0.1823,27190.0,27189.0,0.039109]
[1693488469702,0.1859,27190.0,27189.0,0.039109]
[1693488469947,0.19598,27190.0,27189.0,0.039109]
[1693488470152,0.21134,27190.0,27189.0,0.039109]
[1693488470357,0.2084,27190.0,27189.0,0.039109]
[1693488470536,0.20852,27190.0,27189.0,0.039109]
[1693488470746,0.20954,27190.0,27189.0,0.039109]
[1693488470914,0.20822,27190.0,27189.0,0.039109]
[1693488471116,0.2099,27190.0,27189.0,0.039109]
[1693488471370,0.20858,27190.0,27189.0,0.039109]
[1693488471575,0.20864,27190.0,27189.0,0.039109]
[1693488471782,0.21032,27190.0,27189.0,0.039109]
[1693488472073,0.33818,27190.0,27189.0,0.039109]
[1693488472478,0.33314,27190.0,27189.0,0.039109]
[1693488472911,0.20396,27190.0,27189.0,0.039109]
[1693488473119,0.20276,27190.0,27189.0,0.039109]
[1693488473241,0.20258,27190.0,27189.0,0.039109]
[1693488473447,0.20234,27190.0,27189.0,0.039109]
[1693488473651,0.2066,27190.0,27189.0,0.039109]
[1693488473865,0.20114,27190.0,27189.0,0.039109]
[1693488474066,0.2069,27190.0,27189.0,0.039109]
[1693488474311,0.3323,27190.0,27189.0,0.039109]
[1693488474510,0.20666,27190.0,27189.0,0.039109]
[1693488474733,0.20708,27190.0,27189.0,0.039109]
[1693488474870,0.20444,27190.0,27189.0,0.039109]
[1693488475074,0.20426,27190.0,27189.0,0.039109]
[1693488475305,0.20414,27190.0,27189.0,0.039109]
[1693488475505,0.20366,27190.0,27189.0,0.039109]
[1693488475826,0.33374,27190.0,27189.0,0.039109]
[1693488476035,0.3335,27190.0,27189.0,0.039109]
[1693488476231,0.33326,27190.0,27189.0,0.039109]
[1693488476443,0.2045,27190.0,27189.0,0.039109]
[1693488476786,0.20438,27190.0,27189.0,0.039109]
[1693488476917,0.2042,27190.0,27189.0,0.039109]
[1693488477142,0.3323,27190.0,27189.0,0.039109]
[1693488477340,0.33218,27190.0,27189.0,0.039109]
[1693488477590,0.33182,27190.0,27189.0,0.039109]
[1693488477806,0.3377,27190.0,27189.0,0.039109]
[1693488478005,0.3467,27190.0,27189.0,0.039109]
[1693488478206,0.39753407,27190.0,27189.0,0.039109]
[1693488478409,0.39945407,27190.0,27189.0,0.039109]
[1693488478608,0.40017407,27190.0,27189.0,0.039109]
[1693488478832,0.40113407,27190.0,27189.0,0.039109]
[1693488478949,0.40257407,27190.0,27189.0,0.039109]
[1693488479160,0.39621407,27190.0,27189.0,0.039109]
[1693488479408,0.40245407,27190.0,27189.0,0.039109]
[1693488479612,0.40653407,27190.0,27189.0,0.039109]
[1693488479751,0.40641407,27190.0,27189.0,0.039109]
[1693488479971,0.40317407,27190.0,27189.0,0.039109]
[1693488480169,0.39717407,27190.0,27189.0,0.039109]
[1693488480380,0.39081407,27190.0,27189.0,0.039109]
[1693488480581,0.40449407,27190.0,27189.0,0.039109]
[1693488481049,0.492213,27190.0,27189.0,0.039109]
[1693488481272,0.39873407,27190.0,27189.0,0.039109]
[1693488481478,0.39645407,27190.0,27189.0,0.039109]
[1693488481639,0.39249407,27190.0,27189.0,0.029109]
[1693488481984,0.40093407,27190.0,27189.0,0.023109]
[1693488482185,0.41617407,27190.0,27189.0,0.024109]
[1693488482394,0.40717407,27190.0,27189.0,0.022109]
[1693488482526,0.39985407,27190.0,27189.0,0.022109]
[1693488482742,0.469813,27190.0,27189.0,0.021109]
[1693488482945,0.38197407,27190.0,27189.0,0.021109]
[1693488483176,0.38209407,27190.0,27189.0,0.021109]
[1693488483405,0.38185407,27190.0,27189.0,0.021109]
[1693488483619,0.38449407,27190.0,27189.0,0.021109]
[1693488483821,0.39373407,27190.0,27189.0,0.023109]
[1693488484106,0.39409407,27190.0,27189.0,0.023109]
[1693488484437,0.40021407,27190.0,27189.0,0.024109]
[1693488484642,0.40057407,27190.0,27189.0,0.024109]
[1693488484840,0.40117407,27190.0,27189.0,0.024109]
[1693488485086,0.40069407,27190.0,27189.0,0.024109]
[1693488485218,0.40093407,27190.0,27189.0,0.024109]
[1693488485424,0.40033407,27190.0,27189.0,0.024109]
[1693488485681,0.40057407,27190.0,27189.0,0.024109]
[1693488485882,0.40081407,27190.0,27189.0,0.024109]
[1693488486086,0.40093407,27190.0,27189.0,0.024109]
[1693488486323,0.40117407,27190.0,27189.0,0.024109]
[1693488486529,0.40129407,27190.0,27189.0,0.024109]
[1693488486902,0.40141407,27190.0,27189.0,0.024109]
[1693488487120,0.40033407,27190.0,27189.0,0.024109]
[1693488487356,0.40117407,27190.0,27189.0,0.024109]
[1693488487558,0.40129407,27190.0,27189.0,0.024109]
[1693488487734,0.40309407,27190.0,27189.0,0.024109]
[1693488487963,0.40333407,27190.0,27189.0,0.024109]
[1693488488122,0.40501407,27190.0,27189.0,0.024109]
[1693488488323,0.40513407,27190.0,27189.0,0.024109]
[1693488488521,0.40525407,27190.0,27189.0,0.024109]
[1693488488722,0.40549407,27190.0,27189.0,0.024109]
[1693488488927,0.40561407,27190.0,27189.0,0.024109]
[1693488489129,0.40669407,27190.0,27189.0,0.024109]
[1693488489734,0.40681407,27190.0,27189.0,0.024109]
[1693488489954,0.40717407,27190.0,27189.0,0.024109]
[1693488490326,0.40861407,27190.0,27189.0,0.024109]
[1693488490497,0.40813407,27190.0,27189.0,0.024109]
[1693488490700,0.40801407,27190.0,27189.0,0.024109]
[1693488490931,0.40873407,27190.0,27189.0,0.024109]
[1693488491164,0.41581407,27190.0,27189.0,0.024109]
[1693488491318,0.41617407,27190.0,27189.0,0.024109]
[1693488491539,0.41653407,27190.0,27189.0,0.024109]
[1693488491739,0.41725407,27190.0,27189.0,0.024109]
[1693488491941,0.43021407,27190.0,27189.0,0.024109]
[1693488492262,0.43453407,27190.0,27189.0,0.024109]
[1693488492471,0.43585407,27190.0,27189.0,0.024109]
[1693488492646,0.43789407,27190.0,27189.0,0.024109]
[1693488492860,0.43453407,27190.0,27189.0,0.024109]
[1693488493064,0.43297407,27190.0,27189.0,0.024109]
[1693488493216,0.44041407,27190.0,27189.0,0.024109]
[1693488493421,0.43573407,27190.0,27189.0,0.024109]
[1693488493617,0.43525407,27190.0,27189.0,0.024109]
[1693488493869,0.44533407,27190.0,27189.0,0.024109]
[1693488494115,0.44545407,27190.0,27189.0,0.024109]
[1693488494491,0.45025407,27190.0,27189.0,0.024109]
[1693488494669,0.45049407,27190.0,27189.0,0.024109]
[1693488494897,0.43477407,27190.0,27189.0,0.024109]
[1693488495105,0.42613407,27190.0,27189.0,0.024109]
[1693488495296,0.42769407,27190.0,27189.0,0.024109]
[1693488495503,0.42793407,27190.0,27189.0,0.024109]
[1693488495857,0.42805407,27190.0,27189.0,0.024109]
[1693488496082,0.43069407,27190.0,27189.0,0.024109]
[1693488496284,0.43405407,27190.0,27189.0,0.024109]
[1693488496506,0.43825407,27190.0,27189.0,0.024109]
[1693488496707,0.45049407,27190.0,27189.0,0.024109]
[1693488496909,0.539773,27190.0,27189.0,0.024109]
[1693488497108,0.552253,27190.0,27189.0,0.024109]
[1693488497310,0.552853,27190.0,27189.0,0.024109]
[1693488497524,1.35347755,27190.0,27189.0,0.024109]
[1693488497718,1.61263755,27190.0,27189.0,0.024109]
[1693488497988,1.81081488,27190.0,27189.0,0.024109]
[1693488498132,1.66064222,27190.0,27189.0,0.024109]
[1693488498327,1.48231122,27190.0,27189.0,0.024109]
[1693488498530,1.46719122,27190.0,27189.0,0.023109]
[1693488498849,1.53001122,27190.0,27189.0,0.023109]
[1693488499019,1.53001122,27190.0,27189.0,0.021109]
[1693488499020,1.55257122,27190.0,27189.0,0.021109]
[1693488499225,1.54345122,27190.0,27189.0,0.021109]
[1693488499473,1.35481389,27190.0,27189.0,0.021109]
[1693488499626,1.35349389,27190.0,27189.0,0.021109]
[1693488499825,1.32169389,27190.0,27189.0,0.021109]
[1693488500120,1.31749389,27190.0,27189.0,0.021109]
[1693488500503,1.28077389,27190.0,27189.0,0.021109]
[1693488500705,1.31917389,27190.0,27189.0,0.021109]
[1693488500905,1.31929389,27190.0,27189.0,0.021109]
[1693488501211,1.32697389,27190.0,27189.0,0.021109]
[1693488501410,1.35709389,27190.0,27189.0,0.021109]
[1693488501651,1.48842432,27190.0,27189.0,0.021109]
[1693488501803,1.49118432,27190.0,27189.0,0.021109]
[1693488502008,1.49622432,27190.0,27189.0,0.021109]
[1693488502324,1.35637389,27190.0,27189.0,0.021109]
[1693488502586,1.48757908,27190.0,27189.0,0.021109]
[1693488502743,1.48745908,27190.0,27189.0,0.021109]
[1693488502952,1.48721908,27190.0,27189.0,0.021109]
[1693488503336,1.31742121,27190.0,27189.0,0.021109]
[1693488503757,1.30890121,27190.0,27189.0,0.021109]
[1693488503958,1.51645908,27190.0,27189.0,0.021109]
[1693488504116,1.71559908,27190.0,27189.0,0.021109]
[1693488504328,1.51825908,27190.0,27189.0,0.021109]
[1693488504571,1.76747908,27190.0,27189.0,0.021109]
[1693488504773,1.78889908,27190.0,27189.0,0.021109]
[1693488504975,1.72279908,27190.0,27189.0,0.021109]
[1693488505175,1.73811908,27190.0,27189.0,0.021109]
[1693488505545,1.71795002,27190.0,27189.0,0.021109]
[1693488505755,1.71777002,27190.0,27189.0,0.021109]
[1693488505965,1.49343002,27190.0,27189.0,0.021109]
[1693488506167,1.42581002,27190.0,27189.0,0.021109]
[1693488506385,1.43253002,27190.0,27189.0,0.021109]
[1693488506590,1.43421002,27190.0,27189.0,0.021109]
[1693488506792,1.43577002,27190.0,27189.0,0.021109]
[1693488507000,1.43817002,27190.0,27189.0,0.021109]
[1693488507183,1.26573215,27190.0,27189.0,0.021109]
[1693488507380,1.43661002,27190.0,27189.0,0.021109]
[1693488507603,1.43649002,27190.0,27189.0,0.021109]
[1693488507803,2.12538463,27190.0,27189.0,0.021109]
[1693488508016,2.48796409,27190.0,27189.0,0.021109]
[1693488508244,2.51444409,27190.0,27189.0,0.021109]
[1693488508372,2.51480409,27190.0,27189.0,0.021109]
[1693488508575,2.51768409,27190.0,27189.0,0.021109]
[1693488509008,2.51750409,27190.0,27189.0,0.021109]
[1693488509207,2.47750409,27190.0,27189.0,0.021109]
[1693488509412,0.4666,27188.0,27186.0,0.021008]
[1693488509564,1.2538287,27188.0,27186.0,0.021008]
[1693488509768,3.77531636,27188.0,27186.0,0.021008]
[1693488509963,4.3282776,27188.0,27186.0,0.021008]
[1693488510199,0.5266,27187.0,27186.0,0.021008]
[1693488510403,1.94120378,27187.0,27186.0,0.021008]
[1693488510605,2.08871378,27187.0,27186.0,0.021008]
[1693488510809,2.21487079,27187.0,27186.0,0.021008]
[1693488511046,2.53048718,27187.0,27186.0,0.021008]
[1693488511244,2.53138718,27187.0,27186.0,0.021008]